[Event "Titled Tuesday Blitz April 18 Late 2023"]
[White "Estrada Nieto, Julian"]
[Black "brm72"]
[WhiteFideId "5101018"]
[WhiteElo "2161"]
[BlackElo "2568"]
[Result "1/2-1/2"]
[Round "10"]
[TimeControl "180+2"]
[Date "2023.04.18"]
[WhiteClock "0:00:09"]
[BlackClock "0:00:08"]

1. e4 {[%clk 0:03:00]}  c6 {[%clk 0:02:59]} 2. d4 {[%clk 0:03:00]}  d5 {[%clk 0:02:59]} 3. Nc3 {[%clk 0:03:00]}  dxe4 {[%clk 0:02:59]} 4. Nxe4 {[%clk 0:03:01]}  Nf6 {[%clk 0:03:00]} 5. Nxf6+ {[%clk 0:03:01]}  exf6 {[%clk 0:03:01]} 6. c3 {[%clk 0:03:02]}  Bd6 {[%clk 0:03:01]} 7. Bd3 {[%clk 0:03:02]}  O-O {[%clk 0:03:02]} 8. Ne2 {[%clk 0:03:03]}  Re8 {[%clk 0:03:02]} 9. Qc2 {[%clk 0:03:02]}  h5 {[%clk 0:03:02]} 10. O-O {[%clk 0:03:01]}  Qc7 {[%clk 0:03:01]} 11. h3 {[%clk 0:03:01]}  Nd7 {[%clk 0:03:01]} 12. Bd2 {[%clk 0:03:01]}  Nf8 {[%clk 0:03:02]} 13. Rae1 {[%clk 0:03:01]}  Be6 {[%clk 0:03:02]} 14. c4 {[%clk 0:03:01]}  Rad8 {[%clk 0:03:00]} 15. Kh1 {[%clk 0:02:46]}  g5 {[%clk 0:02:50]} 16. Bf5 {[%clk 0:02:35]}  Kg7 {[%clk 0:02:49]} 17. c5 {[%clk 0:02:21]}  Be7 {[%clk 0:02:45]} 18. Ng3 {[%clk 0:02:20]}  h4 {[%clk 0:02:41]} 19. Bxe6 {[%clk 0:01:54]}  fxe6 {[%clk 0:02:31]} 20. Ne4 {[%clk 0:01:47]}  Ng6 {[%clk 0:02:17]} 21. Qc4 {[%clk 0:01:18]}  Bf8 {[%clk 0:01:58]} 22. Nc3 {[%clk 0:01:18]}  Qd7 {[%clk 0:01:56]} 23. Be3 {[%clk 0:01:08]}  b5 {[%clk 0:01:49]} 24. Qe2 {[%clk 0:00:56]}  b4 {[%clk 0:01:43]} 25. Ne4 {[%clk 0:00:56]}  Qd5 {[%clk 0:01:41]} 26. f3 {[%clk 0:00:45]}  Rd7 {[%clk 0:01:23]} 27. Qa6 {[%clk 0:00:44]}  Ne7 {[%clk 0:01:11]} 28. Nd6 {[%clk 0:00:42]}  Rb8 {[%clk 0:01:03]} 29. Qe2 {[%clk 0:00:37]}  Ng6 {[%clk 0:01:00]} 30. b3 {[%clk 0:00:37]}  Bxd6 {[%clk 0:00:59]} 31. cxd6 {[%clk 0:00:37]}  Qxd6 {[%clk 0:00:54]} 32. Rc1 {[%clk 0:00:36]}  Rb5 {[%clk 0:00:52]} 33. Qc2 {[%clk 0:00:30]}  Ne7 {[%clk 0:00:51]} 34. f4 {[%clk 0:00:24]}  Nf5 {[%clk 0:00:49]} 35. Bf2 {[%clk 0:00:18]}  gxf4 {[%clk 0:00:42]} 36. Qe2 {[%clk 0:00:17]}  Kf8 {[%clk 0:00:22]} 37. Qg4 {[%clk 0:00:16]}  Rg7 {[%clk 0:00:20]} 38. Qf3 {[%clk 0:00:14]}  Qd5 {[%clk 0:00:20]} 39. Rxc6 {[%clk 0:00:13]}  Qxf3 {[%clk 0:00:18]} 40. gxf3 {[%clk 0:00:13]}  Ng3+ {[%clk 0:00:18]} 41. Bxg3 {[%clk 0:00:13]}  Rxg3 {[%clk 0:00:19]} 42. Rxe6 {[%clk 0:00:12]}  Kf7 {[%clk 0:00:18]} 43. Re4 {[%clk 0:00:11]}  Rxh3+ {[%clk 0:00:18]} 44. Kg2 {[%clk 0:00:11]}  Rg3+ {[%clk 0:00:19]} 45. Kf2 {[%clk 0:00:11]}  Rbg5 {[%clk 0:00:17]} 46. Rxf4 {[%clk 0:00:11]}  Rg2+ {[%clk 0:00:18]} 47. Ke3 {[%clk 0:00:11]}  h3 {[%clk 0:00:18]} 48. Rh4 {[%clk 0:00:10]}  Rxa2 {[%clk 0:00:16]} 49. Rxh3 {[%clk 0:00:10]}  Rb2 {[%clk 0:00:17]} 50. Rh7+ {[%clk 0:00:09]}  Kg6 {[%clk 0:00:16]} 51. Rxa7 {[%clk 0:00:10]}  Rxb3+ {[%clk 0:00:17]} 52. Ke4 {[%clk 0:00:10]}  f5+ {[%clk 0:00:15]} 53. Kd5 {[%clk 0:00:10]}  f4+ {[%clk 0:00:14]} 54. Kd6 {[%clk 0:00:10]}  Rd3 {[%clk 0:00:13]} 55. Rc1 {[%clk 0:00:07]}  Rxd4+ {[%clk 0:00:13]} 56. Ke6 {[%clk 0:00:08]}  Rd3 {[%clk 0:00:12]} 57. Rcc7 {[%clk 0:00:08]}  Re3+ {[%clk 0:00:12]} 58. Kd6 {[%clk 0:00:08]}  Rd3+ {[%clk 0:00:08]} 59. Ke6 {[%clk 0:00:08]}  Re3+ {[%clk 0:00:08]} 60. Kd6 {[%clk 0:00:08]}  Rge5 {[%clk 0:00:07]} 61. Rg7+ {[%clk 0:00:07]}  Kh6 {[%clk 0:00:06]} 62. Rh7+ {[%clk 0:00:07]}  Kg6 {[%clk 0:00:06]} 63. Rag7+ {[%clk 0:00:07]}  Kf6 {[%clk 0:00:06]} 64. Rf7+ {[%clk 0:00:07]}  Kg6 {[%clk 0:00:07]} 65. Rhg7+ {[%clk 0:00:08]}  Kh6 {[%clk 0:00:07]} 66. Rh7+ {[%clk 0:00:08]}  Kg6 {[%clk 0:00:07]} 67. Rfg7+ {[%clk 0:00:08]}  Kf6 {[%clk 0:00:07]} 68. Rf7+ {[%clk 0:00:09]}  Kg6 {[%clk 0:00:08]} 1/2-1/2


[Site "https://www.chess.com"]

[Event "Titled Tuesday Blitz April 18 Late 2023"]
[White "Bruedigam, Martin"]
[Black "micke12a"]
[WhiteFideId "24608033"]
[WhiteElo "2331"]
[BlackElo "2366"]
[Result "1-0"]
[Round "10"]
[TimeControl "180+2"]
[Date "2023.04.18"]
[WhiteClock "0:01:33"]
[BlackClock "0:00:48"]

1. d4 {[%clk 0:03:00]}  Nf6 {[%clk 0:02:59]} 2. c4 {[%clk 0:03:01]}  g6 {[%clk 0:02:58]} 3. f3 {[%clk 0:03:01]}  d5 {[%clk 0:02:58]} 4. cxd5 {[%clk 0:03:01]}  Nxd5 {[%clk 0:02:58]} 5. e4 {[%clk 0:03:01]}  Nb6 {[%clk 0:02:59]} 6. Nc3 {[%clk 0:03:00]}  Bg7 {[%clk 0:02:59]} 7. Be3 {[%clk 0:03:01]}  O-O {[%clk 0:02:58]} 8. Qd2 {[%clk 0:03:01]}  e5 {[%clk 0:02:58]} 9. d5 {[%clk 0:03:00]}  c6 {[%clk 0:02:59]} 10. h4 {[%clk 0:03:00]}  cxd5 {[%clk 0:02:59]} 11. exd5 {[%clk 0:03:00]}  N8d7 {[%clk 0:02:55]} 12. h5 {[%clk 0:03:00]}  Nf6 {[%clk 0:02:55]} 13. hxg6 {[%clk 0:02:59]}  fxg6 {[%clk 0:02:56]} 14. O-O-O {[%clk 0:02:57]}  Bd7 {[%clk 0:02:54]} 15. Kb1 {[%clk 0:02:52]}  Rc8 {[%clk 0:02:51]} 16. Bh6 {[%clk 0:02:52]}  Bf5+ {[%clk 0:02:47]} 17. Ka1 {[%clk 0:02:51]}  e4 {[%clk 0:02:36]} 18. Bxg7 {[%clk 0:02:50]}  Kxg7 {[%clk 0:02:35]} 19. g4 {[%clk 0:02:50]}  Bd7 {[%clk 0:02:33]} 20. Qd4 {[%clk 0:02:42]}  Kg8 {[%clk 0:02:21]} 21. g5 {[%clk 0:02:33]}  Nh5 {[%clk 0:02:17]} 22. Nxe4 {[%clk 0:02:26]}  Bf5 {[%clk 0:01:49]} 23. Ne2 {[%clk 0:02:21]}  Bxe4 {[%clk 0:01:48]} 24. fxe4 {[%clk 0:02:19]}  Qxg5 {[%clk 0:01:47]} 25. Nc3 {[%clk 0:02:15]}  Qf4 {[%clk 0:01:38]} 26. Bh3 {[%clk 0:02:13]}  Rc4 {[%clk 0:01:34]} 27. Be6+ {[%clk 0:02:13]}  Rf7 {[%clk 0:01:28]} 28. Bxf7+ {[%clk 0:02:13]}  Qxf7 {[%clk 0:01:28]} 29. Qe5 {[%clk 0:02:08]}  Nd7 {[%clk 0:01:25]} 30. Qd6 {[%clk 0:02:05]}  Qg7 {[%clk 0:01:14]} 31. Qe6+ {[%clk 0:02:02]}  Kh8 {[%clk 0:01:14]} 32. Qe8+ {[%clk 0:01:48]}  Nf8 {[%clk 0:01:13]} 33. Rhf1 {[%clk 0:01:41]}  Nf6 {[%clk 0:01:11]} 34. Qe5 {[%clk 0:01:39]}  N8d7 {[%clk 0:01:08]} 35. Qe6 {[%clk 0:01:35]}  Nc5 {[%clk 0:00:48]} 36. Qxf6 {[%clk 0:01:33]} 1-0


[Site "https://www.chess.com"]

[Event "Titled Tuesday Blitz April 18 Late 2023"]
[White "Bilan, Danila"]
[Black "Todorovic, Bojan"]
[WhiteFideId "24161918"]
[BlackFideId "917087"]
[WhiteElo "2182"]
[BlackElo "2266"]
[Result "0-1"]
[Round "10"]
[TimeControl "180+2"]
[Date "2023.04.18"]
[WhiteClock "0:00:04"]
[BlackClock "0:00:37"]

1. d4 {[%clk 0:03:00]}  Nf6 {[%clk 0:02:58]} 2. Nf3 {[%clk 0:03:00]}  g6 {[%clk 0:02:58]} 3. Bg5 {[%clk 0:03:00]}  Bg7 {[%clk 0:02:58]} 4. c3 {[%clk 0:03:00]}  b6 {[%clk 0:02:52]} 5. Nbd2 {[%clk 0:02:59]}  Bb7 {[%clk 0:02:52]} 6. Qc2 {[%clk 0:02:55]}  c5 {[%clk 0:02:49]} 7. e4 {[%clk 0:02:45]}  cxd4 {[%clk 0:02:46]} 8. cxd4 {[%clk 0:02:46]}  O-O {[%clk 0:02:45]} 9. e5 {[%clk 0:02:41]}  Nd5 {[%clk 0:02:43]} 10. Bc4 {[%clk 0:02:39]}  Nc6 {[%clk 0:02:39]} 11. Bxd5 {[%clk 0:02:09]}  Nb4 {[%clk 0:02:38]} 12. Bxf7+ {[%clk 0:02:09]}  Rxf7 {[%clk 0:02:39]} 13. Qb3 {[%clk 0:02:04]}  a5 {[%clk 0:02:38]} 14. a3 {[%clk 0:01:56]}  Bd5 {[%clk 0:02:35]} 15. Qa4 {[%clk 0:01:27]}  b5 {[%clk 0:02:13]} 16. Qd1 {[%clk 0:01:24]}  Nd3+ {[%clk 0:02:12]} 17. Ke2 {[%clk 0:01:21]}  Nxb2 {[%clk 0:02:12]} 18. Qc2 {[%clk 0:01:16]}  Nc4 {[%clk 0:02:10]} 19. Rhb1 {[%clk 0:00:55]}  Rb8 {[%clk 0:01:35]} 20. Nxc4 {[%clk 0:00:32]}  Bxc4+ {[%clk 0:01:30]} 21. Ke3 {[%clk 0:00:32]}  d5 {[%clk 0:00:59]} 22. Nd2 {[%clk 0:00:21]}  Qd7 {[%clk 0:00:56]} 23. f3 {[%clk 0:00:18]}  Rf5 {[%clk 0:00:49]} 24. Bf4 {[%clk 0:00:13]}  Qa7 {[%clk 0:00:48]} 25. Bg3 {[%clk 0:00:08]}  Bxe5 {[%clk 0:00:46]} 26. Qc3 {[%clk 0:00:05]}  Bxg3 {[%clk 0:00:40]} 27. hxg3 {[%clk 0:00:06]}  e5 {[%clk 0:00:40]} 28. Nxc4 {[%clk 0:00:04]}  dxc4 {[%clk 0:00:38]} 29. a4 {[%clk 0:00:04]}  exd4+ {[%clk 0:00:37]} 30. Qxd4 {[%clk 0:00:04]}  Re8+ {[%clk 0:00:37]} 0-1


[Site "https://www.chess.com"]

[Event "Titled Tuesday Blitz April 18 Late 2023"]
[White "Sonnenschein, Philipp"]
[Black "Rodriguez Santiago, Jaime"]
[WhiteFideId "16250877"]
[BlackFideId "3100898"]
[WhiteElo "2224"]
[BlackElo "2025"]
[Result "1-0"]
[Round "10"]
[TimeControl "180+2"]
[Date "2023.04.18"]
[WhiteClock "0:00:06"]
[BlackClock "0:00:08"]

1. e4 {[%clk 0:03:00]}  c6 {[%clk 0:02:59]} 2. d4 {[%clk 0:03:00]}  d5 {[%clk 0:03:00]} 3. e5 {[%clk 0:03:01]}  Bf5 {[%clk 0:02:59]} 4. h4 {[%clk 0:03:01]}  h5 {[%clk 0:02:58]} 5. Bd3 {[%clk 0:03:01]}  Bxd3 {[%clk 0:02:58]} 6. Qxd3 {[%clk 0:03:02]}  Qa5+ {[%clk 0:02:58]} 7. b4 {[%clk 0:03:00]}  Qa6 {[%clk 0:02:56]} 8. Qb3 {[%clk 0:02:59]}  e6 {[%clk 0:02:55]} 9. Nf3 {[%clk 0:02:51]}  Ne7 {[%clk 0:02:49]} 10. a4 {[%clk 0:02:51]}  Nf5 {[%clk 0:02:42]} 11. Na3 {[%clk 0:02:43]}  Be7 {[%clk 0:02:28]} 12. b5 {[%clk 0:02:42]}  Qb6 {[%clk 0:02:21]} 13. Qc3 {[%clk 0:01:58]}  c5 {[%clk 0:02:16]} 14. a5 {[%clk 0:01:55]}  Qc7 {[%clk 0:02:09]} 15. b6 {[%clk 0:01:45]}  axb6 {[%clk 0:02:01]} 16. axb6 {[%clk 0:01:36]}  Qc6 {[%clk 0:01:53]} 17. O-O {[%clk 0:01:15]}  cxd4 {[%clk 0:01:50]} 18. Qb3 {[%clk 0:01:11]}  Nd7 {[%clk 0:01:42]} 19. Rb1 {[%clk 0:01:10]}  O-O {[%clk 0:01:34]} 20. Nb5 {[%clk 0:00:56]}  Qxb6 {[%clk 0:01:28]} 21. Nbxd4 {[%clk 0:00:55]}  Qxb3 {[%clk 0:01:25]} 22. Rxb3 {[%clk 0:00:53]}  Nxd4 {[%clk 0:01:24]} 23. Nxd4 {[%clk 0:00:54]}  Nc5 {[%clk 0:01:24]} 24. Rb5 {[%clk 0:00:37]}  Rfc8 {[%clk 0:01:21]} 25. Bf4 {[%clk 0:00:28]}  Ra4 {[%clk 0:01:15]} 26. c3 {[%clk 0:00:23]}  Rc4 {[%clk 0:01:14]} 27. Ne2 {[%clk 0:00:18]}  Bxh4 {[%clk 0:01:08]} 28. g3 {[%clk 0:00:18]}  Be7 {[%clk 0:01:08]} 29. Ra1 {[%clk 0:00:18]}  g5 {[%clk 0:01:07]} 30. Be3 {[%clk 0:00:18]}  Rc7 {[%clk 0:00:59]} 31. Ra7 {[%clk 0:00:17]}  Nd7 {[%clk 0:00:46]} 32. Rbxb7 {[%clk 0:00:15]}  Bd8 {[%clk 0:00:34]} 33. Bd4 {[%clk 0:00:08]}  Rxb7 {[%clk 0:00:28]} 34. Rxb7 {[%clk 0:00:09]}  Bc7 {[%clk 0:00:29]} 35. f4 {[%clk 0:00:09]}  gxf4 {[%clk 0:00:27]} 36. gxf4 {[%clk 0:00:10]}  Kg7 {[%clk 0:00:26]} 37. Kg2 {[%clk 0:00:08]}  Nf8 {[%clk 0:00:25]} 38. Kf3 {[%clk 0:00:07]}  Ng6 {[%clk 0:00:25]} 39. Nc1 {[%clk 0:00:04]}  Ne7 {[%clk 0:00:23]} 40. Nd3 {[%clk 0:00:04]}  Nf5 {[%clk 0:00:23]} 41. Nc5 {[%clk 0:00:03]}  Ba5 {[%clk 0:00:19]} 42. Nxe6+ {[%clk 0:00:03]}  Kg6 {[%clk 0:00:18]} 43. Ng5 {[%clk 0:00:02]}  Bxc3 {[%clk 0:00:17]} 44. Bxc3 {[%clk 0:00:02]}  Rxc3+ {[%clk 0:00:17]} 45. Kf2 {[%clk 0:00:03]}  d4 {[%clk 0:00:17]} 46. Rxf7 {[%clk 0:00:02]}  d3 {[%clk 0:00:16]} 47. Rf6+ {[%clk 0:00:03]}  Kg7 {[%clk 0:00:15]} 48. Rxf5 {[%clk 0:00:03]}  d2 {[%clk 0:00:15]} 49. Ke2 {[%clk 0:00:04]}  Rd3 {[%clk 0:00:14]} 50. Kd1 {[%clk 0:00:04]}  h4 {[%clk 0:00:15]} 51. Ne6+ {[%clk 0:00:04]}  Kg6 {[%clk 0:00:14]} 52. Rg5+ {[%clk 0:00:04]}  Kh6 {[%clk 0:00:14]} 53. f5 {[%clk 0:00:04]}  h3 {[%clk 0:00:14]} 54. Rg1 {[%clk 0:00:03]}  h2 {[%clk 0:00:13]} 55. Rh1 {[%clk 0:00:03]}  Rh3 {[%clk 0:00:08]} 56. Kxd2 {[%clk 0:00:04]}  Kh5 {[%clk 0:00:08]} 57. Nf4+ {[%clk 0:00:04]}  Kg4 {[%clk 0:00:07]} 58. Nxh3 {[%clk 0:00:05]}  Kxh3 {[%clk 0:00:07]} 59. Rxh2+ {[%clk 0:00:05]}  Kxh2 {[%clk 0:00:08]} 60. f6 {[%clk 0:00:06]} 1-0


[Site "https://www.chess.com"]

[Event "Titled Tuesday Blitz April 18 Late 2023"]
[White "Jaskolka, Tomasz"]
[Black "Mihajlovskij"]
[WhiteFideId "1170791"]
[WhiteElo "2155"]
[BlackElo "2310"]
[Result "1-0"]
[Round "10"]
[TimeControl "180+2"]
[Date "2023.04.18"]
[WhiteClock "0:00:34"]
[BlackClock "0:00:07"]

1. d4 {[%clk 0:03:00]}  Nf6 {[%clk 0:02:59]} 2. c4 {[%clk 0:03:00]}  g6 {[%clk 0:02:59]} 3. g3 {[%clk 0:02:56]}  Bg7 {[%clk 0:02:59]} 4. Bg2 {[%clk 0:02:57]}  O-O {[%clk 0:03:00]} 5. Nf3 {[%clk 0:02:56]}  d6 {[%clk 0:03:01]} 6. O-O {[%clk 0:02:57]}  c5 {[%clk 0:03:01]} 7. e3 {[%clk 0:02:52]}  Nc6 {[%clk 0:02:58]} 8. b3 {[%clk 0:02:52]}  Bg4 {[%clk 0:02:58]} 9. Bb2 {[%clk 0:02:51]}  Nd7 {[%clk 0:02:58]} 10. h3 {[%clk 0:02:45]}  Bxf3 {[%clk 0:02:55]} 11. Bxf3 {[%clk 0:02:46]}  a6 {[%clk 0:02:45]} 12. Kg2 {[%clk 0:02:29]}  cxd4 {[%clk 0:02:30]} 13. exd4 {[%clk 0:02:27]}  Qb6 {[%clk 0:02:28]} 14. Nc3 {[%clk 0:02:18]}  Rfe8 {[%clk 0:02:00]} 15. Nd5 {[%clk 0:02:16]}  Qd8 {[%clk 0:02:00]} 16. Qd2 {[%clk 0:02:08]}  e5 {[%clk 0:01:58]} 17. Kg1 {[%clk 0:01:49]}  f5 {[%clk 0:01:26]} 18. dxe5 {[%clk 0:01:48]}  Ndxe5 {[%clk 0:01:27]} 19. Bg2 {[%clk 0:01:48]}  Rc8 {[%clk 0:01:05]} 20. Rad1 {[%clk 0:01:45]}  b5 {[%clk 0:00:55]} 21. cxb5 {[%clk 0:01:37]}  axb5 {[%clk 0:00:56]} 22. Ne3 {[%clk 0:01:27]}  Nf7 {[%clk 0:00:42]} 23. Bxg7 {[%clk 0:01:24]}  Kxg7 {[%clk 0:00:43]} 24. Qd5 {[%clk 0:01:20]}  Re5 {[%clk 0:00:39]} 25. Qd3 {[%clk 0:01:18]}  Qa5 {[%clk 0:00:29]} 26. Qc2 {[%clk 0:00:53]}  Qa3 {[%clk 0:00:18]} 27. Qc3 {[%clk 0:00:37]}  Ne7 {[%clk 0:00:08]} 28. Qa1 {[%clk 0:00:35]}  Rc2 {[%clk 0:00:07]} 29. Nxc2 {[%clk 0:00:34]} 1-0


[Site "https://www.chess.com"]

[Event "Titled Tuesday Blitz April 18 Late 2023"]
[White "Nemsko"]
[Black "Storey, Charles H"]
[BlackFideId "406686"]
[WhiteElo "2306"]
[BlackElo "2196"]
[Result "0-1"]
[Round "10"]
[TimeControl "180+2"]
[Date "2023.04.18"]
[WhiteClock "0:00:06"]
[BlackClock "0:00:04"]

1. d4 {[%clk 0:03:00]}  g6 {[%clk 0:01:57]} 2. e4 {[%clk 0:02:58]}  Bg7 {[%clk 0:01:57]} 3. Nc3 {[%clk 0:02:58]}  c5 {[%clk 0:01:57]} 4. Be3 {[%clk 0:02:57]}  cxd4 {[%clk 0:01:56]} 5. Bxd4 {[%clk 0:02:58]}  Nf6 {[%clk 0:01:57]} 6. f3 {[%clk 0:02:54]}  Nc6 {[%clk 0:01:56]} 7. Be3 {[%clk 0:02:52]}  d6 {[%clk 0:01:56]} 8. Qd2 {[%clk 0:02:50]}  O-O {[%clk 0:01:56]} 9. O-O-O {[%clk 0:02:49]}  Be6 {[%clk 0:01:56]} 10. Bh6 {[%clk 0:02:42]}  Bxh6 {[%clk 0:01:55]} 11. Qxh6 {[%clk 0:02:43]}  Qa5 {[%clk 0:01:55]} 12. Kb1 {[%clk 0:02:42]}  Rfc8 {[%clk 0:01:55]} 13. Nge2 {[%clk 0:02:35]}  Ne5 {[%clk 0:01:54]} 14. h4 {[%clk 0:02:10]}  Nc4 {[%clk 0:01:40]} 15. Ka1 {[%clk 0:01:36]}  Nxb2 {[%clk 0:01:38]} 16. Kxb2 {[%clk 0:01:36]}  Qb4+ {[%clk 0:01:38]} 17. Ka1 {[%clk 0:01:27]}  Rxc3 {[%clk 0:01:38]} 18. Nxc3 {[%clk 0:01:27]}  Qxc3+ {[%clk 0:01:37]} 19. Kb1 {[%clk 0:01:28]}  Rc8 {[%clk 0:01:33]} 20. Qd2 {[%clk 0:01:24]}  Qa3 {[%clk 0:01:30]} 21. c4 {[%clk 0:01:20]}  Bxc4 {[%clk 0:01:16]} 22. Bxc4 {[%clk 0:01:21]}  Rxc4 {[%clk 0:01:16]} 23. Rc1 {[%clk 0:01:17]}  Rxc1+ {[%clk 0:00:51]} 24. Rxc1 {[%clk 0:01:18]}  Kg7 {[%clk 0:00:39]} 25. Qc3 {[%clk 0:01:14]}  Qa6 {[%clk 0:00:35]} 26. g4 {[%clk 0:01:09]}  e5 {[%clk 0:00:35]} 27. Qb3 {[%clk 0:00:58]}  Qa5 {[%clk 0:00:23]} 28. Qxb7 {[%clk 0:00:51]}  Ne8 {[%clk 0:00:20]} 29. Qc6 {[%clk 0:00:35]}  Qb4+ {[%clk 0:00:20]} 30. Ka1 {[%clk 0:00:34]}  Nf6 {[%clk 0:00:21]} 31. Qc3 {[%clk 0:00:32]}  Qb6 {[%clk 0:00:19]} 32. Rd1 {[%clk 0:00:26]}  Nd7 {[%clk 0:00:18]} 33. Qd3 {[%clk 0:00:20]}  Nc5 {[%clk 0:00:16]} 34. Qxd6 {[%clk 0:00:20]}  Qa5 {[%clk 0:00:14]} 35. Qxe5+ {[%clk 0:00:20]}  Kg8 {[%clk 0:00:13]} 36. Qb2 {[%clk 0:00:17]}  h6 {[%clk 0:00:11]} 37. h5 {[%clk 0:00:12]}  Na4 {[%clk 0:00:10]} 38. Qb8+ {[%clk 0:00:10]}  Kg7 {[%clk 0:00:09]} 39. Qb3 {[%clk 0:00:09]}  Qe5+ {[%clk 0:00:08]} 40. Kb1 {[%clk 0:00:09]}  Nc3+ {[%clk 0:00:08]} 41. Kc1 {[%clk 0:00:08]}  Nxd1 {[%clk 0:00:08]} 42. Kxd1 {[%clk 0:00:09]}  gxh5 {[%clk 0:00:07]} 43. gxh5 {[%clk 0:00:09]}  Qa1+ {[%clk 0:00:07]} 44. Ke2 {[%clk 0:00:09]}  Qh1 {[%clk 0:00:08]} 45. Qc3+ {[%clk 0:00:09]}  Kh7 {[%clk 0:00:07]} 46. Qe5 {[%clk 0:00:09]}  Qg2+ {[%clk 0:00:06]} 47. Ke3 {[%clk 0:00:10]}  Qxa2 {[%clk 0:00:06]} 48. Qf5+ {[%clk 0:00:10]}  Kg7 {[%clk 0:00:06]} 49. Qe5+ {[%clk 0:00:11]}  Kg8 {[%clk 0:00:06]} 50. Qb8+ {[%clk 0:00:10]}  Kh7 {[%clk 0:00:06]} 51. Kf4 {[%clk 0:00:09]}  Qe6 {[%clk 0:00:04]} 52. Qxa7 {[%clk 0:00:07]}  Qf6+ {[%clk 0:00:04]} 53. Ke3 {[%clk 0:00:07]}  Qg5+ {[%clk 0:00:05]} 54. Kd3 {[%clk 0:00:07]}  Qxh5 {[%clk 0:00:05]} 55. Qe3 {[%clk 0:00:07]}  Qb5+ {[%clk 0:00:05]} 56. Kd2 {[%clk 0:00:07]}  Kg6 {[%clk 0:00:04]} 57. Qf4 {[%clk 0:00:06]}  Qb2+ {[%clk 0:00:04]} 58. Ke3 {[%clk 0:00:06]}  Qc1+ {[%clk 0:00:04]} 0-1


[Site "https://www.chess.com"]

[Event "Titled Tuesday Blitz April 18 Late 2023"]
[White "Tyagi, Kushan"]
[Black "Kovalevsky, Stanislav"]
[WhiteFideId "2040069"]
[BlackFideId "13508598"]
[WhiteElo "2286"]
[BlackElo "2174"]
[Result "1-0"]
[Round "10"]
[TimeControl "180+2"]
[Date "2023.04.18"]
[WhiteClock "0:00:07"]
[BlackClock "0:00:06"]

1. d4 {[%clk 0:03:00]}  d5 {[%clk 0:02:59]} 2. c4 {[%clk 0:02:59]}  c6 {[%clk 0:02:58]} 3. Nf3 {[%clk 0:02:58]}  Nf6 {[%clk 0:02:59]} 4. Qb3 {[%clk 0:02:57]}  e6 {[%clk 0:02:53]} 5. g3 {[%clk 0:02:52]}  Nbd7 {[%clk 0:02:52]} 6. Bg2 {[%clk 0:02:50]}  Ne4 {[%clk 0:02:48]} 7. O-O {[%clk 0:02:49]}  f5 {[%clk 0:02:48]} 8. Bf4 {[%clk 0:02:46]}  Be7 {[%clk 0:02:43]} 9. Nfd2 {[%clk 0:02:42]}  g5 {[%clk 0:02:40]} 10. Be3 {[%clk 0:02:40]}  h5 {[%clk 0:02:25]} 11. f3 {[%clk 0:02:32]}  Nxd2 {[%clk 0:02:22]} 12. Nxd2 {[%clk 0:02:31]}  O-O {[%clk 0:02:21]} 13. Bf2 {[%clk 0:02:21]}  f4 {[%clk 0:02:05]} 14. e4 {[%clk 0:02:20]}  Nf6 {[%clk 0:01:51]} 15. e5 {[%clk 0:02:13]}  Ne8 {[%clk 0:01:47]} 16. Qd3 {[%clk 0:02:06]}  Ng7 {[%clk 0:01:45]} 17. Bh3 {[%clk 0:01:54]}  Bd7 {[%clk 0:01:28]} 18. Qg6 {[%clk 0:01:35]}  Qe8 {[%clk 0:01:16]} 19. Qd3 {[%clk 0:01:30]}  Rc8 {[%clk 0:01:06]} 20. c5 {[%clk 0:01:29]}  Nf5 {[%clk 0:00:58]} 21. b4 {[%clk 0:01:17]}  Qg6 {[%clk 0:00:58]} 22. Bxf5 {[%clk 0:01:14]}  Qxf5 {[%clk 0:00:53]} 23. Qxf5 {[%clk 0:01:11]}  Rxf5 {[%clk 0:00:53]} 24. a4 {[%clk 0:01:08]}  Be8 {[%clk 0:00:49]} 25. Rfb1 {[%clk 0:01:04]}  g4 {[%clk 0:00:46]} 26. fxg4 {[%clk 0:01:00]}  hxg4 {[%clk 0:00:46]} 27. b5 {[%clk 0:00:59]}  Bg5 {[%clk 0:00:41]} 28. Nf1 {[%clk 0:00:58]}  Rc7 {[%clk 0:00:18]} 29. Rb3 {[%clk 0:00:57]}  Rcf7 {[%clk 0:00:16]} 30. Ra2 {[%clk 0:00:56]}  fxg3 {[%clk 0:00:16]} 31. Nxg3 {[%clk 0:00:40]}  Rf3 {[%clk 0:00:16]} 32. Rab2 {[%clk 0:00:33]}  Rxb3 {[%clk 0:00:09]} 33. Rxb3 {[%clk 0:00:33]}  Bf4 {[%clk 0:00:05]} 34. b6 {[%clk 0:00:20]}  a6 {[%clk 0:00:05]} 35. Be3 {[%clk 0:00:17]}  Bxe3+ {[%clk 0:00:02]} 36. Rxe3 {[%clk 0:00:17]}  Rf4 {[%clk 0:00:02]} 37. Ne2 {[%clk 0:00:17]}  Re4 {[%clk 0:00:01]} 38. Rxe4 {[%clk 0:00:16]}  dxe4 {[%clk 0:00:02]} 39. a5 {[%clk 0:00:16]}  Bg6 {[%clk 0:00:01]} 40. Kf2 {[%clk 0:00:16]}  Kg7 {[%clk 0:00:01]} 41. Ke3 {[%clk 0:00:16]}  Kh6 {[%clk 0:00:02]} 42. Kf4 {[%clk 0:00:16]}  Bf5 {[%clk 0:00:02]} 43. Ng3 {[%clk 0:00:16]}  Kg6 {[%clk 0:00:03]} 44. Nxe4 {[%clk 0:00:16]}  Bxe4 {[%clk 0:00:03]} 45. Kxe4 {[%clk 0:00:15]}  Kg5 {[%clk 0:00:04]} 46. Ke3 {[%clk 0:00:11]}  Kf5 {[%clk 0:00:04]} 47. Kd3 {[%clk 0:00:08]}  Kg5 {[%clk 0:00:03]} 48. Ke4 {[%clk 0:00:08]}  Kh4 {[%clk 0:00:03]} 49. d5 {[%clk 0:00:06]}  exd5+ {[%clk 0:00:03]} 50. Kf4 {[%clk 0:00:06]}  Kh3 {[%clk 0:00:04]} 51. e6 {[%clk 0:00:06]}  Kxh2 {[%clk 0:00:04]} 52. e7 {[%clk 0:00:07]}  g3 {[%clk 0:00:04]} 53. e8=Q {[%clk 0:00:07]}  g2 {[%clk 0:00:05]} 54. Qh5+ {[%clk 0:00:07]}  Kg1 {[%clk 0:00:05]} 55. Kf3 {[%clk 0:00:07]}  Kf1 {[%clk 0:00:05]} 56. Qh3 {[%clk 0:00:07]}  Ke1 {[%clk 0:00:05]} 57. Qxg2 {[%clk 0:00:07]}  d4 {[%clk 0:00:06]} 58. Qe2# {[%clk 0:00:07]} 1-0


[Site "https://www.chess.com"]